[Event "Czech Youth U14 Girls 2024"]
[Site "Kouty nad Desnou"]
[Date "2024.03.16"]
[Round "9.6"]
[White "Mojzisova, Barbora"]
[Black "Hladka, Leontyna"]
[Result "0-1"]
[ECO "B84"]
[WhiteElo "1623"]
[BlackElo "1683"]
[Annotator "NA RC"]
[PlyCount "104"]
[EventDate "2024.03.10"]
[EventType "swiss"]
[EventCountry "CZE"]
[SourceTitle "playchess.com"]
[Source "ChessBase"]
[SourceQuality "1"]
[TimeControl "40/5400+30:1800+30"]

1. e4 {[%emt 0:00:03]} c5 {[%emt 0:00:05]} 2. Nf3 {[%emt 0:00:06]} d6 {[%emt 0:00:06]} 3. d4 {[%emt 0:00:09]} cxd4 {[%emt 0:00:06]} 4. Nxd4 {[%emt 0:00:08]} Nf6 {[%emt 0:00:12]} 5. Nc3 {[%emt 0:00:29]} a6 {[%emt 0:00:07]} 6. Be2 {[%emt 0:00:36]} e6 {[%emt 0:00:12]} 7. O-O {[%emt 0:01:27]} Be7 {[%emt 0:00:10]} 8. Be3 {[%emt 0:03:18]} b5 {[%emt 0:02:23]} 9. Bf3 {[%emt 0:06:24]} e5 {[%emt 0:12:35]} 10. Nb3 {[%emt 0:01:35]} O-O {[%emt 0:00:41]} 11. Nd5 {[%emt 0:01:29]} Nbd7 {[%emt 0:01:20]} 12. Qd2 {[%emt 0:04:05]} Nxd5 {[%emt 0:07:11]} 13. exd5 {[%emt 0:05:00]} Bb7 {[%emt 0:00:58]} 14. Na5 {[%emt 0:04:29]} Qc7 {[%emt 0:02:11]} 15. Rfc1 {[%emt 0:06:07]} Nb6 {[%emt 0:07:11]} 16. Nc6 {[%emt 0:09:13]} Nc4 {[%emt 0:06:04]} 17. Qc3 {[%emt 0:01:50]} f5 {[%emt 0:07:13]} 18. Nxe7+ {[%emt 0:10:16]} Qxe7 {[%emt 0:00:08]} 19. Rd1 {[%emt 0:01:08]} Rac8 {[%emt 0:11:00]} 20. Qb3 {[%emt 0:07:09]} Kh8 {[%emt 0:08:10]} 21. Kh1 {[%emt 0:07:43]} f4 {[%emt 0:03:56]} 22. Bc1 {[%emt 0:01:31]} e4 {[%emt 0:01:33]} 23. Bg4 {[%emt 0:02:36]} Rc5 {[%emt 0:01:40]} 24. Be6 {[%emt 0:02:16]} Qh4 {[%emt 0:04:28]} 25. Kg1 {[%emt 0:03:32]} Qh5 {[%emt 0:00:28]} 26. Bd2 {[%emt 0:02:27]} Bxd5 {[%emt 0:01:29]} 27. Bb4 {[%emt 0:02:26]} Bxe6 {[%emt 0:00:10]} 28. Bxc5 {[%emt 0:00:18]} dxc5 {[%emt 0:01:32]} 29. Qc3 {[%emt 0:01:06]} f3 {[%emt 0:00:58]} 30. gxf3 {[%emt 0:00:27]} exf3 {[%emt 0:01:05]} 31. Kh1 {[%emt 0:00:11]} Bh3 {[%emt 0:00:29]} 32. Rg1 {[%emt 0:00:48]} Bg2+ {[%emt 0:00:11]} 33. Rxg2 {[%emt 0:00:06]} fxg2+ {[%emt 0:00:07]} 34. Kxg2 {[%emt 0:00:13]} Qg4+ {[%emt 0:01:31]} 35. Kf1 {[%emt 0:00:42]} Qf4 {[%emt 0:00:47]} 36. Qg3 {[%emt 0:01:10]} Qxg3 {[%emt 0:00:51]} 37. hxg3 {[%emt 0:00:05]} Nxb2 {[%emt 0:00:59]} 38. Rb1 {[%emt 0:00:27]} Nc4 {[%emt 0:00:19]} 39. Re1 {[%emt 0:00:21]} h6 {[%emt 0:00:52]} 40. Kg2 {[%emt 0:00:19]} Na3 {[%emt 0:00:51]} 41. Re2 {[%emt 0:30:10]} c4 {[%emt 0:30:47]} 42. c3 {[%emt 0:00:26]} Rb8 {[%emt 0:00:49]} 43. Rb2 {[%emt 0:00:26]} a5 {[%emt 0:00:14]} 44. Kf1 {[%emt 0:00:06]} b4 {[%emt 0:00:18]} 45. cxb4 {[%emt 0:00:25]} axb4 {[%emt 0:00:11]} 46. Ke2 {[%emt 0:00:08]} b3 {[%emt 0:02:36]} 47. axb3 {[%emt 0:00:08]} Rxb3 {[%emt 0:00:41]} 48. Ra2 {[%emt 0:00:33]} c3 {[%emt 0:00:30]} 49. Kd3 {[%emt 0:01:09]} c2+ {[%emt 0:00:17]} 50. Kd2 {[%emt 0:00:08]} Rb1 {[%emt 0:00:44]} 51. Rxc2 {[%emt 0:01:06]} Nxc2 {[%emt 0:00:07]} 52. Kxc2 {[%emt 0:00:03]} Rf1 {[%emt 0:00:07]} 0-1

[Event "Czech Youth U14 Girls 2024"]
[Site "Kouty nad Desnou"]
[Date "2024.03.16"]
[Round "9.7"]
[White "Strazhnyk, Viktoriia"]
[Black "Martinkovicova, Nela"]
[Result "1-0"]
[ECO "C44"]
[WhiteElo "1570"]
[BlackElo "1476"]
[Annotator "NA"]
[PlyCount "53"]
[EventDate "2024.03.10"]
[EventType "swiss"]
[EventCountry "CZE"]
[SourceTitle "playchess.com"]
[Source "ChessBase"]
[SourceQuality "1"]
[TimeControl "40/5400+30:1800+30"]

1. e4 {[%emt 0:00:01]} e5 {[%emt 0:00:22]} 2. d4 {[%emt 0:00:04]} exd4 {[%emt 0:00:53]} 3. Bc4 {[%emt 0:00:08]} Nc6 {[%emt 0:01:16]} 4. Nf3 {[%emt 0:00:14]} Bd6 {[%emt 0:02:59]} 5. Nxd4 {[%emt 0:02:26]} Nf6 {[%emt 0:03:43]} 6. O-O {[%emt 0:09:23]} O-O {[%emt 0:04:57]} 7. Nc3 {[%emt 0:05:37]} Re8 {[%emt 0:03:42]} 8. Re1 {[%emt 0:06:27]} Bb4 {[%emt 0:01:35]} 9. Nxc6 {[%emt 0:02:07]} bxc6 {[%emt 0:02:41]} 10. e5 {[%emt 0:01:55]} Bxc3 {[%emt 0:03:25]} 11. bxc3 {[%emt 0:00:26]} Nd5 {[%emt 0:00:59]} 12. Bxd5 {[%emt 0:01:23]} cxd5 {[%emt 0:00:10]} 13. Qxd5 {[%emt 0:03:39]} Rb8 {[%emt 0:01:07]} 14. Bf4 {[%emt 0:07:11]} Rb2 {[%emt 0:02:52]} 15. Qd3 {[%emt 0:02:31]} Bb7 {[%emt 0:03:26]} 16. Qg3 {[%emt 0:05:41]} Rxc2 17. Bg5 {[%emt 0:01:44]} Qc8 {[%emt 0:11:01]} 18. Bc1 {[%emt 0:02:49]} Ba6 {[%emt 0:04:40]} 19. Bh6 {[%emt 0:04:32]} g6 {[%emt 0:01:06]} 20. Qf4 {[%emt 0:02:24]} Re6 {[%emt 0:02:11]} 21. Qd4 {[%emt 0:02:03]} c5 {[%emt 0:02:00]} 22. Qe3 {[%emt 0:03:41]} Qc6 {[%emt 0:07:40]} 23. Qg5 {[%emt 0:05:06]} Qc8 {[%emt 0:01:28]} 24. f4 {[%emt 0:03:40]} Rxc3 {[%emt 0:07:37]} 25. f5 {[%emt 0:00:23]} Rc6 {[%emt 0:01:47]} 26. e6 {[%emt 0:01:03]} dxe6 {[%emt 0:03:30]} 27. Qf6 1-0

[Event "Czech Youth U14 Girls 2024"]
[Site "Kouty nad Desnou"]
[Date "2024.03.16"]
[Round "9.8"]
[White "Sochorova, Valentyna"]
[Black "Nguyen Nhat, Minh Thu"]
[Result "1-0"]
[ECO "C92"]
[WhiteElo "1485"]
[BlackElo "1563"]
[Annotator "NA"]
[PlyCount "73"]
[EventDate "2024.03.10"]
[EventType "swiss"]
[EventCountry "CZE"]
[SourceTitle "playchess.com"]
[Source "ChessBase"]
[SourceQuality "1"]
[TimeControl "40/5400+30:1800+30"]

1. e4 {[%emt 0:00:03]} e5 {[%emt 0:00:13]} 2. Nf3 {[%emt 0:00:14]} Nc6 {[%emt 0:00:06]} 3. Bb5 {[%emt 0:00:16]} a6 {[%emt 0:00:18]} 4. Ba4 {[%emt 0:00:10]} b5 {[%emt 0:00:54]} 5. Bb3 {[%emt 0:00:27]} d6 {[%emt 0:00:11]} 6. h3 {[%emt 0:11:35]} Be7 {[%emt 0:12:10]} 7. O-O {[%emt 0:03:18]} Nf6 {[%emt 0:04:55]} 8. Re1 {[%emt 0:00:30]} Bb7 {[%emt 0:05:13]} 9. c3 {[%emt 0:02:40]} O-O {[%emt 0:18:22]} 10. d4 {[%emt 0:02:08]} exd4 {[%emt 0:06:07]} 11. cxd4 {[%emt 0:00:55]} Na5 {[%emt 0:13:56]} 12. Bc2 {[%emt 0:09:45]} c5 {[%emt 0:05:04]} 13. d5 {[%emt 0:05:59]} Nc4 {[%emt 0:03:27]} 14. b3 {[%emt 0:17:52]} Ne5 {[%emt 0:01:08]} 15. Nxe5 {[%emt 0:00:30]} dxe5 {[%emt 0:00:09]} 16. Bb2 {[%emt 0:00:40]} Bd6 {[%emt 0:00:40]} 17. Nd2 {[%emt 0:05:51]} Nd7 {[%emt 0:06:27]} 18. Nf1 {[%emt 0:07:50]} Qf6 {[%emt 0:08:28]} 19. Ng3 {[%emt 0:03:53]} Rfd8 {[%emt 0:01:54]} 20. Re3 {[%emt 0:08:20]} Nf8 {[%emt 0:01:51]} 21. Nf5 {[%emt 0:04:59]} Ng6 {[%emt 0:01:30]} 22. Rg3 {[%emt 0:02:11]} Bc8 {[%emt 0:01:07]} 23. Bc1 {[%emt 0:01:24]} h6 {[%emt 0:01:40]} 24. Rf3 {[%emt 0:03:57]} Nh4 {[%emt 0:01:02]} 25. Nxh6+ {[%emt 0:01:44]} Qxh6 {[%emt 0:01:53]} 26. Bxh6 {[%emt 0:00:07]} Nxf3+ {[%emt 0:00:03]} 27. Qxf3 {[%emt 0:00:06]} gxh6 {[%emt 0:00:17]} 28. Qg3+ {[%emt 0:01:18]} Kh7 {[%emt 0:00:17]} 29. Qh4 {[%emt 0:02:43]} Rg8 {[%emt 0:02:03]} 30. Rf1 {[%emt 0:02:14]} Rg6 {[%emt 0:00:21]} 31. f4 {[%emt 0:00:39]} Bd7 {[%emt 0:00:33]} 32. fxe5 {[%emt 0:00:57]} Bxe5 {[%emt 0:00:41]} 33. Rxf7+ {[%emt 0:00:37]} Rg7 {[%emt 0:00:04]} 34. Qe7 {[%emt 0:00:49]} Bd4+ {[%emt 0:00:43]} 35. Kh1 {[%emt 0:00:26]} Be8 {[%emt 0:01:03]} 36. e5+ {[%emt 0:00:20]} Kh8 {[%emt 0:00:49]} 37. Rf8+ {[%emt 0:00:11]} 1-0

[Event "Czech Youth U14 Girls 2024"]
[Site "Kouty nad Desnou"]
[Date "2024.03.16"]
[Round "9.9"]
[White "Kavanova, Valentyna"]
[Black "Spetlova, Stella"]
[Result "1/2-1/2"]
[ECO "B13"]
[WhiteElo "1539"]
[BlackElo "1405"]
[Annotator "NA RC"]
[PlyCount "62"]
[EventDate "2024.03.10"]
[EventType "swiss"]
[EventCountry "CZE"]
[SourceTitle "playchess.com"]
[Source "ChessBase"]
[SourceQuality "1"]
[TimeControl "40/5400+30:1800+30"]

1. e4 {[%emt 0:00:03]} c6 {[%emt 0:00:27]} 2. d4 {[%emt 0:00:09]} d5 {[%emt 0:01:10]} 3. exd5 {[%emt 0:00:08]} cxd5 {[%emt 0:00:15]} 4. Bd3 {[%emt 0:00:06]} Nc6 {[%emt 0:01:25]} 5. c3 {[%emt 0:00:21]} Nf6 {[%emt 0:01:24]} 6. Bf4 {[%emt 0:01:22]} Bg4 {[%emt 0:02:25]} 7. Nf3 {[%emt 0:07:36]} e6 {[%emt 0:02:05]} 8. Nbd2 {[%emt 0:00:44]} Bd6 {[%emt 0:01:31]} 9. Bxd6 {[%emt 0:00:11]} Qxd6 {[%emt 0:00:08]} 10. O-O {[%emt 0:00:39]} O-O {[%emt 0:04:40]} 11. Re1 {[%emt 0:00:34]} Rac8 {[%emt 0:03:49]} 12. Qc2 {[%emt 0:04:30]} Nb4 {[%emt 0:02:36]} 13. Qb1 {[%emt 0:00:44]} Nxd3 {[%emt 0:00:59]} 14. Qxd3 {[%emt 0:00:05]} Rfd8 {[%emt 0:02:24]} 15. Ne5 {[%emt 0:04:10]} Bf5 {[%emt 0:00:57]} 16. Qg3 {[%emt 0:04:20]} Nd7 {[%emt 0:03:10]} 17. Re3 {[%emt 0:12:14]} Nxe5 {[%emt 0:01:26]} 18. dxe5 {[%emt 0:01:53]} Qb6 {[%emt 0:00:26]} 19. b4 {[%emt 0:01:21]} d4 {[%emt 0:01:23]} 20. Rf3 {[%emt 0:05:51]} Qc6 {[%emt 0:01:34]} 21. Rc1 {[%emt 0:03:36]} Qd5 {[%emt 0:01:30]} 22. c4 {[%emt 0:08:45]} Qc6 {[%emt 0:02:51]} 23. Qg5 {[%emt 0:02:26]} h6 {[%emt 0:01:09]} 24. Qh4 {[%emt 0:01:44]} Qa4 {[%emt 0:00:42]} 25. Rg3 {[%emt 0:01:09]} Qxb4 {[%emt 0:00:36]} 26. Qxh6 {[%emt 0:00:19]} Bg6 {[%emt 0:00:56]} 27. Qg5 {[%emt 0:02:23]} Qb2 {[%emt 0:02:16]} 28. Rb1 {[%emt 0:02:20]} Qxa2 {[%emt 0:00:31]} 29. Rxb7 {[%emt 0:01:11]} Rb8 {[%emt 0:00:55]} 30. Rxb8 {[%emt 0:00:53]} Rxb8 {[%emt 0:00:09]} 31. h3 {[%emt 0:00:43]} Qc2 {[%emt 0:06:01]} 1/2-1/2

[Event "Czech Youth U14 Girls 2024"]
[Site "Kouty nad Desnou"]
[Date "2024.03.16"]
[Round "9.10"]
[White "Peskova, Sara"]
[Black "Barteckova, Valerie"]
[Result "0-1"]
[ECO "B18"]
[WhiteElo "1481"]
[BlackElo "1687"]
[Annotator "NA RC"]
[PlyCount "102"]
[EventDate "2024.03.10"]
[EventType "swiss"]
[EventCountry "CZE"]
[SourceTitle "playchess.com"]
[Source "ChessBase"]
[SourceQuality "1"]
[TimeControl "40/5400+30:1800+30"]

1. e4 {[%emt 0:00:00]} c6 {[%emt 0:00:08]} 2. d4 d5 {[%emt 0:00:06]} 3. Nc3 {[%emt 0:00:34]} dxe4 {[%emt 0:00:38]} 4. Nxe4 {[%emt 0:00:16]} Bf5 {[%emt 0:00:22]} 5. Ng3 {[%emt 0:00:34]} Bg6 {[%emt 0:00:11]} 6. Nh3 {[%emt 0:00:32]} e6 {[%emt 0:02:54]} 7. Nf4 {[%emt 0:00:34]} Bd6 {[%emt 0:02:01]} 8. h4 {[%emt 0:04:07]} Qc7 {[%emt 0:09:48]} 9. h5 {[%emt 0:04:38]} Bxc2 {[%emt 0:08:23]} 10. Nxe6 {[%emt 0:07:04]} fxe6 {[%emt 0:01:09]} 11. Qxc2 {[%emt 0:00:20]} Bxg3 {[%emt 0:00:19]} 12. fxg3 {[%emt 0:00:02]} Qxg3+ {[%emt 0:00:02]} 13. Qf2 {[%emt 0:00:50]} Qxf2+ {[%emt 0:00:54]} 14. Kxf2 {[%emt 0:00:02]} Nf6 {[%emt 0:00:01]} 15. Bc4 {[%emt 0:01:08]} Nd5 {[%emt 0:09:37]} 16. h6 {[%emt 0:04:44]} g6 {[%emt 0:02:34]} 17. Re1 {[%emt 0:01:48]} Rf8+ {[%emt 0:01:24]} 18. Kg3 {[%emt 0:01:16]} Kd7 {[%emt 0:03:00]} 19. Bd2 {[%emt 0:03:22]} b5 {[%emt 0:11:56]} 20. Bb3 {[%emt 0:01:35]} Na6 {[%emt 0:01:32]} 21. Re5 {[%emt 0:04:45]} Nac7 {[%emt 0:02:17]} 22. Rae1 {[%emt 0:02:14]} Rae8 {[%emt 0:01:14]} 23. Ba5 {[%emt 0:11:48]} Rf6 {[%emt 0:11:23]} 24. Rc1 {[%emt 0:05:19]} Ne7 {[%emt 0:03:55]} 25. Bxc7 {[%emt 0:03:44]} Kxc7 {[%emt 0:00:14]} 26. Bxe6 {[%emt 0:02:55]} Rxe6 {[%emt 0:01:03]} 27. Rxb5 {[%emt 0:04:20]} Nf5+ {[%emt 0:00:41]} 28. Kh2 {[%emt 0:03:19]} Nxd4 {[%emt 0:01:55]} 29. Rb4 {[%emt 0:07:35]} Nf5 {[%emt 0:02:07]} 30. Rc3 {[%emt 0:04:18]} Rb8 {[%emt 0:02:35]} 31. Rxb8 {[%emt 0:00:42]} Kxb8 {[%emt 0:00:01]} 32. g4 {[%emt 0:00:17]} Nxh6 {[%emt 0:02:46]} 33. g5 {[%emt 0:05:21]} Nf5 {[%emt 0:01:09]} 34. Kh3 {[%emt 0:02:15]} Re3+ {[%emt 0:04:50]} 35. Rxe3 {[%emt 0:00:25]} Nxe3 {[%emt 0:00:04]} 36. Kg3 {[%emt 0:00:16]} Nd5 {[%emt 0:01:05]} 37. Kf3 {[%emt 0:00:34]} Kc7 {[%emt 0:00:17]} 38. Ke4 {[%emt 0:00:17]} Kd6 {[%emt 0:00:26]} 39. a3 {[%emt 0:00:35]} c5 {[%emt 0:01:26]} 40. Kd3 {[%emt 0:02:29]} Nb6 {[%emt 0:02:26]} 41. b3 {[%emt 0:31:35]} Ke5 {[%emt 0:30:47]} 42. Ke3 {[%emt 0:00:57]} Kf5 {[%emt 0:00:18]} 43. Kf3 {[%emt 0:01:04]} Kxg5 {[%emt 0:00:09]} 44. Kg3 {[%emt 0:00:11]} h5 {[%emt 0:00:13]} 45. Kf3 {[%emt 0:01:21]} h4 {[%emt 0:00:06]} 46. Kg2 {[%emt 0:00:11]} Kf4 {[%emt 0:00:09]} 47. Kh2 {[%emt 0:00:38]} g5 {[%emt 0:00:08]} 48. Kg2 {[%emt 0:00:09]} g4 {[%emt 0:00:06]} 49. Kh2 {[%emt 0:00:09]} g3+ {[%emt 0:00:07]} 50. Kg2 {[%emt 0:00:18]} h3+ {[%emt 0:00:26]} 51. Kxh3 {[%emt 0:00:23]} Kf3 {[%emt 0:00:08]} 0-1

[Event "Czech Youth U14 Girls 2024"]
[Site "Kouty nad Desnou"]
[Date "2024.03.16"]
[Round "9.11"]
[White "Kratka, Tereza"]
[Black "Krisicova, Neli"]
[Result "0-1"]
[ECO "A20"]
[WhiteElo "1477"]
[BlackElo "1556"]
[Annotator "NA RC"]
[PlyCount "64"]
[EventDate "2024.03.10"]
[EventType "swiss"]
[EventCountry "CZE"]
[SourceTitle "playchess.com"]
[Source "ChessBase"]
[SourceQuality "1"]
[TimeControl "40/5400+30:1800+30"]

1. c4 {[%emt 0:00:12]} e5 {[%emt 0:00:25]} 2. d3 {[%emt 0:00:23]} Nc6 {[%emt 0:01:05]} 3. Nc3 {[%emt 0:00:52]} Bc5 {[%emt 0:01:03]} 4. g3 {[%emt 0:00:40]} d6 {[%emt 0:01:02]} 5. Bg2 {[%emt 0:00:28]} a6 {[%emt 0:01:28]} 6. Nf3 {[%emt 0:00:52]} Nge7 {[%emt 0:01:53]} 7. a3 {[%emt 0:01:07]} Ba7 {[%emt 0:02:14]} 8. O-O {[%emt 0:01:51]} O-O {[%emt 0:03:01]} 9. Bd2 {[%emt 0:04:01]} f5 {[%emt 0:04:44]} 10. Bg5 {[%emt 0:02:05]} h6 {[%emt 0:03:50]} 11. Bxe7 {[%emt 0:00:41]} Qxe7 {[%emt 0:00:28]} 12. Nd5 {[%emt 0:00:52]} Qf7 {[%emt 0:02:27]} 13. Qd2 {[%emt 0:02:51]} Nd4 {[%emt 0:03:56]} 14. Nxd4 {[%emt 0:02:16]} Bxd4 {[%emt 0:00:18]} 15. e3 {[%emt 0:01:32]} Ba7 {[%emt 0:01:04]} 16. f4 {[%emt 0:04:08]} c6 {[%emt 0:03:35]} 17. Nc3 {[%emt 0:03:05]} Be6 {[%emt 0:04:18]} 18. fxe5 {[%emt 0:06:23]} dxe5 {[%emt 0:00:31]} 19. Kh1 {[%emt 0:01:24]} Rad8 {[%emt 0:03:07]} 20. Qe2 {[%emt 0:10:40]} Qg6 {[%emt 0:03:35]} 21. Rad1 {[%emt 0:02:53]} Qg5 {[%emt 0:07:11]} 22. Rfe1 {[%emt 0:04:42]} Rfe8 {[%emt 0:07:24]} 23. Bh3 {[%emt 0:05:15]} Bf7 {[%emt 0:03:34]} 24. Qf3 {[%emt 0:03:03]} Bh5 {[%emt 0:05:14]} 25. Qxf5 {[%emt 0:02:29]} Qxf5 {[%emt 0:00:38]} 26. Bxf5 {[%emt 0:00:18]} Bxd1 {[%emt 0:00:29]} 27. Nxd1 {[%emt 0:00:19]} Rf8 {[%emt 0:01:49]} 28. Be4 {[%emt 0:01:06]} Rf6 {[%emt 0:02:11]} 29. b4 {[%emt 0:01:21]} Rdf8 {[%emt 0:02:11]} 30. Kg2 {[%emt 0:00:39]} Kf7 {[%emt 0:01:20]} 31. Nb2 {[%emt 0:00:32]} Ke7 {[%emt 0:00:44]} 32. c5 {[%emt 0:00:24]} Rf2+ {[%emt 0:00:20]} 0-1

[Event "Czech Youth U14 Girls 2024"]
[Site "Kouty nad Desnou"]
[Date "2024.03.16"]
[Round "9.12"]
[White "Archlebova, Iva"]
[Black "Vaclavkova, Klara"]
[Result "1/2-1/2"]
[ECO "C49"]
[WhiteElo "1488"]
[BlackElo "1486"]
[Annotator "NA RC"]
[PlyCount "74"]
[EventDate "2024.03.10"]
[EventType "swiss"]
[EventCountry "CZE"]
[SourceTitle "playchess.com"]
[Source "ChessBase"]
[SourceQuality "1"]
[TimeControl "40/5400+30:1800+30"]

1. e4 {[%emt 0:00:02]} e5 {[%emt 0:00:01]} 2. Nf3 {[%emt 0:00:32]} Nc6 {[%emt 0:00:02]} 3. Nc3 {[%emt 0:00:35]} Nf6 {[%emt 0:00:08]} 4. Bb5 {[%emt 0:00:12]} Bb4 {[%emt 0:00:20]} 5. d3 {[%emt 0:00:46]} d6 {[%emt 0:00:57]} 6. Bg5 {[%emt 0:00:31]} Bg4 {[%emt 0:00:32]} 7. O-O {[%emt 0:00:28]} Bxc3 {[%emt 0:01:33]} 8. bxc3 {[%emt 0:00:16]} O-O {[%emt 0:00:07]} 9. Re1 {[%emt 0:01:12]} a6 {[%emt 0:03:30]} 10. Bc4 {[%emt 0:01:38]} Qe7 {[%emt 0:06:09]} 11. d4 {[%emt 0:02:26]} Na5 {[%emt 0:05:00]} 12. Bb3 {[%emt 0:00:39]} exd4 {[%emt 0:01:18]} 13. cxd4 {[%emt 0:02:38]} Nxb3 {[%emt 0:00:41]} 14. cxb3 {[%emt 0:02:54]} h6 {[%emt 0:03:09]} 15. Bh4 {[%emt 0:13:48]} g5 {[%emt 0:05:08]} 16. Bg3 {[%emt 0:00:31]} Nxe4 {[%emt 0:00:45]} 17. Qd3 {[%emt 0:01:52]} Rfe8 {[%emt 0:07:45]} 18. h4 {[%emt 0:17:33]} f6 {[%emt 0:04:34]} 19. Nh2 {[%emt 0:05:03]} Bf5 {[%emt 0:01:23]} 20. Qc4+ {[%emt 0:07:11]} Qf7 {[%emt 0:03:36]} 21. Qxf7+ {[%emt 0:05:47]} Kxf7 {[%emt 0:00:12]} 22. Nf1 {[%emt 0:01:14]} Re7 {[%emt 0:02:07]} 23. hxg5 {[%emt 0:02:34]} hxg5 {[%emt 0:00:21]} 24. f3 {[%emt 0:02:45]} Nxg3 {[%emt 0:00:04]} 25. Nxg3 {[%emt 0:00:43]} Be6 {[%emt 0:02:42]} 26. Ne4 {[%emt 0:02:25]} Rae8 {[%emt 0:01:13]} 27. Kf2 {[%emt 0:01:10]} Bd5 {[%emt 0:03:26]} 28. Nc3 {[%emt 0:03:02]} Bc6 {[%emt 0:01:46]} 29. a4 {[%emt 0:03:12]} b5 {[%emt 0:01:24]} 30. axb5 {[%emt 0:00:30]} Rxe1 {[%emt 0:00:31]} 31. Rxe1 {[%emt 0:01:03]} Rxe1 {[%emt 0:00:17]} 32. Kxe1 {[%emt 0:00:05]} axb5 {[%emt 0:00:05]} 33. b4 {[%emt 0:00:45]} Ke6 {[%emt 0:00:22]} 34. Kf2 {[%emt 0:01:46]} Bd5 {[%emt 0:00:16]} 35. Nxb5 {[%emt 0:00:50]} Kd7 {[%emt 0:01:47]} 36. Kg3 {[%emt 0:02:37]} c6 {[%emt 0:00:39]} 37. Nc3 {[%emt 0:00:38]} Be6 {[%emt 0:01:45]} 1/2-1/2

[Event "Czech Youth U14 Girls 2024"]
[Site "Kouty nad Desnou"]
[Date "2024.03.16"]
[Round "9.13"]
[White "Pruskova, Justyna"]
[Black "Myronova, Sofia"]
[Result "0-1"]
[ECO "B23"]
[WhiteElo "1471"]
[BlackElo "1456"]
[Annotator "NA RC"]
[PlyCount "110"]
[EventDate "2024.03.10"]
[EventType "swiss"]
[EventCountry "CZE"]
[SourceTitle "playchess.com"]
[Source "ChessBase"]
[SourceQuality "1"]
[TimeControl "40/5400+30:1800+30"]

1. e4 {[%emt 0:00:03]} c5 {[%emt 0:00:10]} 2. Nc3 {[%emt 0:00:18]} Nc6 {[%emt 0:00:13]} 3. f4 {[%emt 0:00:12]} d6 {[%emt 0:00:31]} 4. d3 {[%emt 0:00:11]} g6 {[%emt 0:00:47]} 5. g3 {[%emt 0:00:16]} Nf6 {[%emt 0:00:40]} 6. Nf3 {[%emt 0:00:15]} Bg7 {[%emt 0:00:50]} 7. Bg2 {[%emt 0:00:34]} a6 {[%emt 0:03:37]} 8. a3 {[%emt 0:00:48]} b6 {[%emt 0:01:49]} 9. O-O {[%emt 0:00:31]} Bb7 {[%emt 0:00:42]} 10. Bd2 {[%emt 0:02:07]} O-O {[%emt 0:00:31]} 11. h3 {[%emt 0:00:15]} e6 {[%emt 0:02:45]} 12. g4 {[%emt 0:00:13]} Qd7 {[%emt 0:00:56]} 13. g5 {[%emt 0:00:37]} Ne8 {[%emt 0:03:24]} 14. Qe1 {[%emt 0:01:11]} Nd4 {[%emt 0:15:27]} 15. Nxd4 {[%emt 0:00:57]} Bxd4+ {[%emt 0:01:02]} 16. Kh1 {[%emt 0:00:19]} Ng7 {[%emt 0:01:08]} 17. Qh4 {[%emt 0:02:31]} f5 {[%emt 0:03:32]} 18. Rab1 {[%emt 0:01:49]} b5 {[%emt 0:05:00]} 19. Rfe1 {[%emt 0:01:56]} Rfe8 {[%emt 0:03:34]} 20. Ne2 {[%emt 0:01:44]} Rac8 {[%emt 0:05:28]} 21. c3 {[%emt 0:00:35]} Be5 {[%emt 0:02:30]} 22. fxe5 {[%emt 0:00:59]} dxe5 {[%emt 0:00:06]} 23. Nc1 {[%emt 0:08:35]} c4 {[%emt 0:01:13]} 24. Qf2 {[%emt 0:01:49]} Ra8 {[%emt 0:01:23]} 25. d4 {[%emt 0:01:15]} Rf8 {[%emt 0:00:59]} 26. dxe5 {[%emt 0:02:47]} fxe4 {[%emt 0:01:11]} 27. Qd4 {[%emt 0:02:14]} Qxd4 {[%emt 0:01:17]} 28. cxd4 {[%emt 0:00:22]} Nh5 {[%emt 0:01:37]} 29. Kh2 {[%emt 0:02:59]} Rf7 {[%emt 0:00:55]} 30. Rf1 {[%emt 0:02:54]} Rxf1 {[%emt 0:01:15]} 31. Bxf1 {[%emt 0:00:51]} Rf8 {[%emt 0:00:11]} 32. Bg2 {[%emt 0:01:59]} Rf2 {[%emt 0:00:21]} 33. Be3 {[%emt 0:00:28]} Rc2 {[%emt 0:00:47]} 34. h4 {[%emt 0:03:55]} c3 {[%emt 0:02:04]} 35. Nd3 {[%emt 0:02:24]} exd3 {[%emt 0:00:44]} 36. Rg1 {[%emt 0:00:45]} Bxg2 {[%emt 0:00:22]} 37. bxc3 {[%emt 0:01:19]} Bd5+ {[%emt 0:01:06]} 38. Kh3 {[%emt 0:00:38]} Rxc3 {[%emt 0:00:29]} 39. Kg4 {[%emt 0:01:09]} Ng7 {[%emt 0:03:46]} 40. Bd2 {[%emt 0:01:52]} Rc4 {[%emt 0:02:17]} 41. Be3 {[%emt 0:31:08]} Nf5 {[%emt 0:30:21]} 42. Bf2 {[%emt 0:00:29]} Nxd4 {[%emt 0:00:22]} 43. Bxd4 {[%emt 0:00:28]} Rxd4+ {[%emt 0:00:12]} 44. Kh3 {[%emt 0:00:17]} d2 {[%emt 0:00:25]} 45. Kg3 {[%emt 0:02:15]} d1=Q {[%emt 0:00:25]} 46. Rxd1 {[%emt 0:00:10]} Rxd1 {[%emt 0:00:06]} 47. Kf2 {[%emt 0:00:13]} Ra1 {[%emt 0:00:13]} 48. Ke3 {[%emt 0:00:25]} Rxa3+ {[%emt 0:00:12]} 49. Kf2 {[%emt 0:00:24]} b4 {[%emt 0:00:07]} 50. Ke2 {[%emt 0:00:20]} b3 {[%emt 0:00:15]} 51. Kd2 {[%emt 0:00:10]} Ra2+ {[%emt 0:00:25]} 52. Kc1 {[%emt 0:00:07]} Rh2 {[%emt 0:00:11]} 53. Kb1 {[%emt 0:00:22]} Be4+ {[%emt 0:00:20]} 54. Kc1 {[%emt 0:00:25]} b2+ {[%emt 0:00:08]} 55. Kd1 {[%emt 0:00:15]} b1=Q# {[%emt 0:00:07]} 0-1